bitfinex/quotes_SOLUSD_20240818
["timestamp","ask_amount","ask_price","bid_price","bid_amount"]
[1724000115178,16.0684,146.5,146.47,21.36522038]
[1724000115379,16.0684,146.5,146.47,20.0]
[1724000116970,16.0684,146.5,146.47,21.36521999]
[1724000117280,16.0684,146.5,146.47,20.0]
[1724000119491,16.0684,146.5,146.45,20.0]
[1724000120667,16.0684,146.5,146.46,1.36527732]
[1724000120867,16.0684,146.5,146.46,10.12527732]
[1724000121186,16.0684,146.5,146.47,20.0]
[1724000121370,16.0684,146.5,146.47,21.36519079]
[1724000121684,16.0684,146.5,146.47,20.0]
[1724000123192,16.0684,146.5,146.45,8.76]
[1724000123372,16.0684,146.5,146.46,20.0]
[1724000125473,16.0684,146.5,146.47,1.36521929]
[1724000125995,16.0684,146.5,146.46,20.0]
[1724000127782,16.0684,146.5,146.44,8.76]
[1724000127989,16.0684,146.5,146.45,65.0]
[1724000128293,16.0684,146.5,146.46,1.36521022]
[1724000131284,16.0684,146.5,146.45,20.0]
[1724000131493,16.0684,146.5,146.43,20.0]
[1724000131693,16.0684,146.5,146.44,45.0]
[1724000131997,16.0684,146.5,146.45,20.0]
[1724000135304,31.83549537,146.49,146.4,7.09285208]
[1724000135477,30.1288,146.49,146.4,7.09285208]
[1724000135796,30.1288,146.49,146.39,8.76]
[1724000136800,30.1288,146.49,146.4,45.0]
[1724000137477,30.1288,146.49,146.41,20.0]
[1724000142995,1.70722659,146.48,146.41,20.0]
[1724000143993,23.7681,146.47,146.41,20.0]
[1724000144203,1.70741648,146.46,146.38,20.0]
[1724000144501,23.7681,146.47,146.38,20.0]
[1724000145381,7.50917262,146.46,146.38,20.0]
[1724000145582,15.0081,146.46,146.38,20.0]
[1724000146198,15.0081,146.46,146.37,28.76]
[1724000146391,22.66942967,146.45,146.37,30.12593347]
[1724000146594,22.66942967,146.45,146.36,7.95928553]
[1724000146595,15.0081,146.44,146.36,0.8631117]
[1724000146786,15.0081,146.42,146.36,0.8631117]
[1724000147308,16.7160028,146.42,146.36,0.8631117]
[1724000147987,15.0081,146.42,146.36,0.8631117]
[1724000148502,16.71601739,146.42,146.36,0.8631117]
[1724000148705,45.0,146.44,146.36,0.8631117]
[1724000148706,60.1595,146.41,146.36,0.8631117]
[1724000148921,60.1595,146.41,146.31,22.25759346]
[1724000148922,8.76,146.37,146.31,7.09809346]
[1724000149111,10.46849333,146.37,146.27,8.76]
[1724000149585,8.76,146.37,146.27,8.76]
[1724000149789,8.76,146.37,146.26,2.46002125]
[1724000149993,8.76,146.37,146.27,8.76]
[1724000150192,6.3995,146.36,146.27,8.76]
[1724000151506,15.0081,146.35,146.27,8.76]
[1724000152303,15.0081,146.35,146.28,20.0]
[1724000152790,23.7681,146.35,146.26,8.76]
[1724000152991,23.7681,146.35,146.27,65.0]
[1724000153223,1.70876193,146.34,146.27,20.0]
[1724000153901,23.7681,146.35,146.26,8.76]
[1724000154210,23.7681,146.35,146.27,20.0]
[1724000154793,25.476883,146.35,146.27,20.0]
[1724000155699,23.7681,146.35,146.27,20.0]
[1724000156685,23.7681,146.35,146.28,8.76]
[1724000156888,23.7681,146.35,146.29,20.0]
[1724000160900,1.70869286,146.34,146.29,20.0]
[1724000161426,23.7681,146.35,146.29,20.0]
[1724000162111,15.0081,146.35,146.29,20.0]
[1724000162497,15.0081,146.35,146.3,10.12688228]
[1724000162698,15.0081,146.35,146.31,20.0]
[1724000162900,15.0081,146.35,146.32,1.36668808]
[1724000163297,15.0081,146.35,146.31,20.0]
[1724000173634,15.0081,146.35,146.3,8.76]
[1724000173834,15.0081,146.35,146.32,20.0]
[1724000173835,16.71646258,146.35,146.32,20.0]
[1724000174009,15.0081,146.35,146.32,20.0]
[1724000174427,15.0081,146.35,146.29,20.0]
[1724000175331,15.0081,146.35,146.29,28.76]
[1724000178035,16.71663692,146.35,146.29,28.76]
[1724000179226,16.71663807,146.35,146.29,28.76]
[1724000179428,15.0081,146.35,146.29,28.76]
[1724000179838,25.47669063,146.35,146.29,20.0]
[1724000180147,25.47669063,146.35,146.25,8.76]
[1724000180346,23.7681,146.35,146.25,8.76]
[1724000182118,8.76,146.35,146.25,8.76]
[1724000182316,6.3529,146.31,146.23,7.09148052]
[1724000182514,6.3529,146.31,146.23,8.76]
[1724000182718,15.1129,146.31,146.23,8.76]
[1724000183142,15.9376,146.3,146.23,8.76]
[1724000183441,15.9376,146.3,146.21,9.6231117]
[1724000183943,15.9376,146.28,146.21,0.8631117]
[1724000184251,10.46966036,146.27,146.21,0.8631117]
[1724000184550,8.76,146.27,146.21,0.8631117]
[1724000184715,15.9376,146.28,146.21,0.8631117]
[1724000186641,6.3529,146.27,146.21,2.23073535]
[1724000186829,6.3529,146.27,146.21,0.8631117]
[1724000189221,6.3529,146.27,146.21,20.8631117]
[1724000192349,6.3529,146.27,146.22,20.0]
[1724000192833,6.3529,146.27,146.21,20.8631117]
[1724000193737,6.3529,146.27,146.22,20.0]
[1724000194045,6.3529,146.27,146.21,0.8631117]
[1724000197545,15.3147,146.26,146.21,0.8631117]
[1724000197750,17.02450453,146.26,146.21,0.8631117]
[1724000198640,15.3147,146.26,146.21,0.8631117]
[1724000198952,1.70980074,146.25,146.21,0.8631117]
[1724000199341,15.3147,146.26,146.21,0.8631117]
[1724000199743,15.3147,146.26,146.21,20.8631117]
[1724000200751,15.3147,146.26,146.24,8.76]
[1724000200950,15.3147,146.26,146.25,1.36735489]
[1724000201150,15.3147,146.26,146.25,21.36735489]
[1724000201451,6.0932,146.31,146.25,21.36735489]
[1724000201452,15.3147,146.3,146.25,20.0]
[1724000201638,15.3147,146.3,146.26,8.76]
[1724000202140,15.3147,146.3,146.25,20.0]
[1724000207344,15.3147,146.3,146.23,20.0]
[1724000208972,1.70929354,146.29,146.23,20.0]
[1724000209145,1.70929354,146.29,146.21,9.6231117]
[1724000209344,1.70929354,146.29,146.22,65.0]
[1724000210153,24.0747,146.3,146.22,65.0]
[1724000210873,1.7093377,146.29,146.22,65.0]
[1724000211653,1.7093377,146.29,146.22,20.0]
[1724000212254,24.0747,146.3,146.22,20.0]
[1724000214154,15.3147,146.3,146.22,20.0]
[1724000214471,15.3147,146.3,146.23,8.76]
[1724000214651,15.3147,146.3,146.24,20.0]
[1724000214852,1.70922935,146.29,146.24,20.0]
[1724000215182,15.3147,146.3,146.24,20.0]
[1724000216350,15.3147,146.3,146.25,10.12729401]
[1724000216550,15.3147,146.3,146.26,20.0]
[1724000217975,15.3147,146.3,146.24,20.0]
[1724000218360,17.02394118,146.3,146.24,20.0]
[1724000219261,15.3147,146.3,146.24,20.0]
[1724000220281,15.3147,146.3,146.22,20.0]
[1724000220486,15.3147,146.3,146.23,1.3674527]
[1724000220870,15.3147,146.3,146.22,20.0]
[1724000221983,15.3147,146.3,146.23,1.36744217]
[1724000222367,15.3147,146.3,146.22,20.0]
[1724000224057,15.3147,146.3,146.23,8.76]
[1724000224289,15.3147,146.3,146.24,20.0]
[1724000226071,15.3147,146.3,146.23,8.76]
[1724000226262,15.3147,146.3,146.24,20.0]
[1724000226967,7.51782612,146.29,146.24,20.0]
[1724000227291,15.3147,146.3,146.24,20.0]
[1724000227589,7.51782686,146.29,146.24,20.0]
[1724000227796,15.3147,146.3,146.24,20.0]
[1724000228082,7.51777835,146.29,146.24,20.0]
[1724000228285,15.3147,146.3,146.24,20.0]
[1724000230082,7.51758432,146.29,146.24,20.0]
[1724000230260,27.07497504,146.3,146.24,20.0]
[1724000230461,7.51778072,146.29,146.24,20.0]
[1724000230761,27.07497504,146.3,146.24,20.0]
[1724000230963,7.51778072,146.29,146.24,20.0]
[1724000231163,15.3147,146.3,146.24,20.0]
[1724000231375,7.51774635,146.29,146.24,20.0]
[1724000231582,15.3147,146.3,146.24,20.0]
[1724000231778,7.51763104,146.29,146.24,20.0]
[1724000231999,15.3147,146.3,146.24,20.0]
[1724000232288,7.5176649,146.29,146.24,20.0]
[1724000232498,27.07479164,146.3,146.24,20.0]
[1724000232660,15.3147,146.3,146.24,20.0]
[1724000232868,7.51774177,146.29,146.24,20.0]
[1724000233062,15.3147,146.3,146.24,20.0]
[1724000233282,7.51774177,146.29,146.24,20.0]
[1724000233599,27.07477493,146.3,146.24,20.0]
[1724000233771,7.51774415,146.29,146.24,20.0]
[1724000233968,1.70910516,146.28,146.24,20.0]
[1724000234192,7.51833645,146.27,146.21,0.8631117]
[1724000234405,9.22857801,146.26,146.21,0.8631117]
[1724000234699,15.1249,146.25,146.21,0.8631117]
[1724000236680,23.7715,146.29,146.21,20.8631117]
[1724000236881,19.28134352,146.28,146.22,1.36753644]
[1724000237082,7.5189182,146.27,146.22,1.36753644]
[1724000237296,26.77392532,146.29,146.22,10.12753644]
[1724000237584,7.51868513,146.28,146.23,20.0]
[1724000237801,7.51868513,146.27,146.23,20.0]
[1724000238084,15.0115,146.29,146.23,21.36746726]
[1724000238300,7.51877018,146.28,146.23,20.0]
[1724000238468,7.51877018,146.27,146.23,20.0]
[1724000238793,11.76160754,146.28,146.21,0.8631117]
[1724000239094,7.51918479,146.27,146.21,20.8631117]
[1724000239285,7.51918479,146.26,146.21,20.8631117]
[1724000239480,11.76160754,146.28,146.21,20.8631117]
[1724000239792,7.51919411,146.27,146.21,20.8631117]
[1724000239986,7.51919411,146.26,146.21,20.8631117]
[1724000240186,11.76160754,146.28,146.21,20.8631117]
[1724000240495,7.51910061,146.27,146.21,20.8631117]
[1724000240666,11.76160754,146.28,146.21,20.8631117]
[1724000240868,7.51910061,146.27,146.21,20.8631117]
[1724000241171,7.51915151,146.26,146.21,20.8631117]
[1724000241484,11.76160754,146.28,146.21,20.8631117]
[1724000241663,7.51910061,146.27,146.21,20.8631117]
[1724000241866,11.76160754,146.28,146.21,20.8631117]
[1724000242091,7.51910061,146.27,146.21,20.8631117]
[1724000242294,11.76160754,146.28,146.21,20.8631117]
[1724000242468,7.51915151,146.27,146.21,20.8631117]
[1724000242789,7.51915151,146.26,146.21,20.8631117]
[1724000242974,11.76160754,146.28,146.21,20.8631117]
[1724000243169,7.51915371,146.27,146.21,20.8631117]
[1724000243390,7.51915371,146.26,146.21,20.8631117]
[1724000243595,11.76160754,146.28,146.21,20.8631117]
[1724000243772,7.51915388,146.27,146.21,20.8631117]
[1724000244091,7.51915151,146.26,146.21,20.8631117]
[1724000244385,23.7715,146.29,146.21,20.8631117]
[1724000244595,19.28144484,146.28,146.21,20.8631117]
[1724000244900,7.51915496,146.27,146.21,20.8631117]
[1724000245089,7.51915496,146.26,146.21,20.8631117]
[1724000245269,23.7715,146.29,146.21,20.8631117]
[1724000245466,19.28143092,146.28,146.21,20.8631117]
[1724000245671,7.51915388,146.27,146.21,20.8631117]
[1724000245894,7.51915388,146.26,146.21,20.8631117]
[1724000246098,23.7715,146.29,146.21,20.8631117]
[1724000246295,8.76,146.27,146.21,0.8631117]
[1724000246485,8.76,146.25,146.21,0.8631117]
[1724000246992,7.52033041,146.24,146.21,0.8631117]
[1724000247296,20.52227704,146.25,146.21,0.8631117]
[1724000247473,7.52049354,146.24,146.21,0.8631117]
[1724000247667,8.76,146.25,146.21,0.8631117]
[1724000247975,7.52053863,146.24,146.21,0.8631117]
[1724000248209,8.76,146.25,146.21,0.8631117]
[1724000248368,7.52062382,146.24,146.21,0.8631117]
[1724000248682,20.52227704,146.25,146.21,0.8631117]
[1724000248884,7.5206727,146.24,146.21,0.8631117]
[1724000249083,8.76,146.25,146.21,0.8631117]
[1724000249285,7.52067498,146.24,146.21,0.8631117]
[1724000249476,8.76,146.25,146.21,0.8631117]
[1724000249680,7.52067261,146.24,146.21,0.8631117]
[1724000249903,11.76227704,146.26,146.21,0.8631117]
[1724000250208,7.52028188,146.25,146.21,0.8631117]
[1724000250373,8.76,146.26,146.21,0.8631117]
[1724000250574,7.52023539,146.25,146.21,0.8631117]
[1724000250774,8.76,146.26,146.21,0.8631117]
[1724000250986,7.52023539,146.25,146.21,0.8631117]
[1724000251183,7.52050369,146.24,146.21,0.8631117]
[1724000251375,8.76,146.26,146.21,0.8631117]
[1724000251590,7.52073968,146.25,146.21,0.8631117]
[1724000251897,7.52073968,146.24,146.21,0.8631117]
[1724000252202,8.76,146.24,146.21,0.8631117]
[1724000252997,1.7098669,146.23,146.21,0.8631117]
[1724000253200,23.7715,146.24,146.21,0.8631117]
[1724000253405,25.48153844,146.24,146.21,0.8631117]
[1724000253773,7.52150368,146.23,146.21,0.8631117]
[1724000253974,23.7715,146.24,146.21,0.8631117]
[1724000254173,7.52150702,146.23,146.21,0.8631117]
[1724000254373,23.7715,146.24,146.21,0.8631117]
[1724000254596,7.52150589,146.23,146.21,0.8631117]
[1724000254802,23.7715,146.24,146.21,0.8631117]
[1724000255010,7.52165206,146.23,146.21,0.8631117]
[1724000255197,15.0115,146.24,146.21,0.8631117]
[1724000259514,23.7715,146.24,146.21,0.8631117]
[1724000267398,7.52169389,146.23,146.21,0.8631117]
[1724000267593,23.7715,146.24,146.21,0.8631117]
[1724000267801,7.52188626,146.23,146.21,0.8631117]
[1724000268104,23.7715,146.24,146.21,0.8631117]
[1724000268310,7.52179784,146.23,146.21,0.8631117]
[1724000268609,23.7715,146.24,146.21,0.8631117]
[1724000268816,7.52188884,146.23,146.21,0.8631117]
[1724000269120,23.7715,146.24,146.21,0.8631117]
[1724000269325,7.52188884,146.23,146.21,0.8631117]
[1724000269488,23.7715,146.24,146.21,0.8631117]
[1724000269693,7.52188884,146.23,146.21,0.8631117]
[1724000269899,23.7715,146.24,146.21,0.8631117]
[1724000270098,7.52188884,146.23,146.21,0.8631117]
[1724000270301,23.7715,146.24,146.21,0.8631117]
[1724000270499,7.52188884,146.23,146.21,0.8631117]
[1724000270702,23.7715,146.24,146.21,0.8631117]
[1724000270891,7.52188884,146.23,146.21,0.8631117]
[1724000271106,23.7715,146.24,146.21,0.8631117]
[1724000271327,7.52189122,146.23,146.21,0.8631117]
[1724000271504,15.0115,146.24,146.21,0.8631117]
[1724000274629,7.52149927,146.23,146.21,0.8631117]
[1724000274800,8.76,146.25,146.21,0.8631117]
[1724000274999,7.52150165,146.24,146.21,0.8631117]
[1724000275227,7.52150165,146.23,146.21,0.8631117]
[1724000275407,20.52596423,146.26,146.21,0.8631117]
[1724000275615,7.52150165,146.25,146.21,0.8631117]
[1724000275823,7.52150165,146.24,146.21,0.8631117]
[1724000276124,7.52150165,146.23,146.21,0.8631117]
[1724000276327,20.52596423,146.26,146.21,0.8631117]
[1724000276513,19.28745842,146.25,146.21,0.8631117]
[1724000276828,7.52149419,146.24,146.21,0.8631117]
[1724000277023,7.52149419,146.23,146.21,0.8631117]
[1724000277196,11.76596423,146.25,146.21,0.8631117]
[1724000277401,7.52150624,146.24,146.21,0.8631117]
[1724000277599,7.52150419,146.23,146.21,0.8631117]
[1724000277811,8.76,146.24,146.21,0.8631117]
[1724000278030,7.52158494,146.23,146.21,0.8631117]
[1724000278205,7.52158494,146.22,146.21,0.8631117]
[1724000278803,7.52188163,146.22,146.21,0.8631117]
[1724000279833,8.76,146.24,146.21,0.8631117]
[1724000280010,7.52193031,146.23,146.21,0.8631117]
[1724000280332,7.52193031,146.22,146.21,0.8631117]
[1724000281138,11.76663982,146.23,146.21,0.8631117]
[1724000281311,7.52193031,146.22,146.21,0.8631117]
[1724000282823,8.76,146.24,146.21,0.8631117]
[1724000283128,19.28857013,146.23,146.21,0.8631117]
[1724000283334,7.52193031,146.22,146.21,0.8631117]
[1724000285230,7.52095721,146.22,146.21,0.8631117]
[1724000289305,8.76,146.24,146.21,0.8631117]
[1724000289506,19.28766482,146.23,146.21,0.8631117]
[1724000289817,19.28766482,146.22,146.21,0.8631117]
[1724000290020,7.52157769,146.22,146.21,0.8631117]
[1724000290213,19.28766482,146.22,146.21,0.8631117]
[1724000293534,19.28747606,146.22,146.21,0.8631117]
[1724000294002,8.76,146.26,146.21,0.8631117]
[1724000294204,19.28660162,146.25,146.21,0.8631117]
[1724000294405,19.28660162,146.24,146.21,30.9906906]
[1724000294607,7.52116356,146.23,146.21,30.9906906]
[1724000294810,11.76356877,146.27,146.21,30.9906906]
[1724000295010,19.28352883,146.26,146.21,30.9906906]
[1724000295232,19.28352883,146.25,146.21,30.9906906]
[1724000295417,19.28352883,146.24,146.21,30.9906906]
[1724000295618,7.51996006,146.23,146.21,30.9906906]
[1724000295924,11.76389279,146.27,146.21,30.9906906]
[1724000296127,19.2842907,146.26,146.21,22.2306906]
[1724000296329,19.2842907,146.25,146.21,20.8631117]
[1724000296517,19.2842907,146.24,146.21,20.8631117]
[1724000296725,7.52026344,146.23,146.21,20.8631117]
[1724000296927,11.76388969,146.27,146.21,20.8631117]
[1724000297126,19.28406536,146.26,146.21,20.8631117]
[1724000297321,19.28406536,146.25,146.21,20.8631117]
[1724000297520,19.28406536,146.24,146.21,20.8631117]
[1724000297724,7.52026992,146.23,146.21,20.8631117]
[1724000297942,24.0246,146.28,146.21,20.8631117]
[1724000297943,11.76403793,146.27,146.21,20.8631117]
[1724000298266,19.28429321,146.26,146.21,20.8631117]
[1724000298537,19.28429321,146.25,146.21,20.8631117]
[1724000298744,19.28429321,146.24,146.21,20.8631117]
[1724000298926,7.52025528,146.23,146.21,20.8631117]
[1724000299236,8.76,146.26,146.21,20.8631117]
[1724000299543,19.28411316,146.25,146.21,20.8631117]
[1724000299730,19.28411316,146.24,146.21,20.8631117]
[1724000299938,19.28411316,146.23,146.21,20.8631117]
[1724000300243,19.28626346,146.22,146.21,0.8631117]
[1724000300447,19.28823407,146.22,146.21,0.8631117]
[1724000301740,8.76,146.24,146.21,0.8631117]
[1724000301930,19.28838148,146.23,146.21,0.8631117]
[1724000302115,19.28838148,146.22,146.21,0.8631117]
[1724000305260,19.28850641,146.22,146.21,0.8631117]
[1724000310340,19.28838173,146.22,146.21,0.8631117]
[1724000311937,19.28847576,146.22,146.21,0.8631117]
[1724000314134,19.28856968,146.22,146.21,0.8631117]
[1724000318466,19.28847948,146.22,146.21,0.8631117]
[1724000319054,19.28844495,146.22,146.21,0.8631117]
[1724000323775,19.28952659,146.22,146.21,0.8631117]
[1724000324674,7.52230286,146.22,146.21,0.8631117]
[1724000325064,11.76575537,146.22,146.21,0.8631117]
[1724000325271,7.52136601,146.22,146.21,0.8631117]
[1724000325459,19.28643371,146.22,146.21,0.8631117]
[1724000325773,19.28710196,146.22,146.21,0.8631117]
[1724000326071,7.52136601,146.22,146.21,0.8631117]
[1724000326448,16.6631,146.27,146.21,0.8631117]
[1724000326645,19.2846689,146.26,146.21,0.8631117]
[1724000326868,19.2846689,146.25,146.21,2.23082005]
[1724000327072,7.52041075,146.24,146.21,2.23082005]
[1724000327378,7.52041075,146.23,146.21,2.23082005]
[1724000327563,11.76403498,146.26,146.21,2.23082005]
[1724000327865,8.76,146.28,146.21,2.23082005]
[1724000327866,19.28425773,146.25,146.21,2.23082005]
[1724000328086,7.52022275,146.24,146.21,2.23082005]
[1724000328250,11.76396027,146.27,146.21,0.8631117]
[1724000328556,19.28417352,146.26,146.21,20.8631117]
[1724000328756,19.28417352,146.25,146.21,20.8631117]
[1724000328974,7.52021325,146.24,146.21,20.8631117]
[1724000329163,11.76395655,146.27,146.21,0.8631117]
[1724000329474,19.2841698,146.26,146.21,0.8631117]
[1724000329771,30.0,146.22,146.21,0.8631117]
[1724000329971,11.76395655,146.26,146.21,0.8631117]
[1724000330171,20.99396222,146.25,146.21,0.8631117]
[1724000330473,7.52021562,146.24,146.21,0.8631117]
[1724000330777,7.520218,146.24,146.21,0.8631117]
[1724000332763,30.0,146.22,146.21,0.8631117]
[1724000335973,11.76410129,146.25,146.21,0.8631117]
[1724000336170,7.52025489,146.24,146.21,0.8631117]
[1724000336366,11.76410129,146.25,146.21,0.8631117]
[1724000336680,7.52025456,146.24,146.21,0.8631117]
[1724000336884,11.76410129,146.25,146.21,0.8631117]
[1724000337081,7.52025693,146.24,146.21,0.8631117]
[1724000337382,11.76410129,146.25,146.21,0.8631117]
[1724000337679,7.52025693,146.24,146.21,0.8631117]
[1724000337878,11.76410129,146.25,146.21,0.8631117]
[1724000338082,7.52025456,146.24,146.21,0.8631117]
[1724000338293,11.76410129,146.25,146.21,0.8631117]
[1724000338483,7.52030355,146.24,146.21,0.8631117]
[1724000338779,11.76410129,146.25,146.21,0.8631117]
[1724000338983,7.52030322,146.24,146.21,0.8631117]
[1724000339182,11.76401706,146.25,146.21,0.8631117]
[1724000339482,30.0,146.22,146.21,0.8631117]
[1724000341286,11.76402465,146.27,146.21,0.8631117]
[1724000341486,19.28428643,146.26,146.21,0.8631117]
[1724000341661,19.28428643,146.25,146.21,0.8631117]
[1724000341988,13.4945,146.3,146.21,0.8631117]
[1724000341989,7.52030331,146.24,146.21,0.8631117]
[1724000342182,11.76408975,146.26,146.21,22.23082497]
[1724000342483,8.76,146.3,146.21,22.23082497]
[1724000342689,19.28416911,146.29,146.21,22.23082497]
[1724000342867,19.28416911,146.28,146.21,22.23082497]
[1724000343182,19.28416911,146.27,146.21,22.23082497]
[1724000343381,19.28416911,146.26,146.21,22.23082497]
[1724000343572,7.52022188,146.25,146.21,22.23082497]
[1724000343765,11.76394723,146.28,146.21,22.23082497]
[1724000343962,8.76,146.3,146.21,22.23082497]
[1724000343963,19.28379498,146.27,146.21,22.23082497]
[1724000344283,8.76,146.3,146.21,22.23082497]
[1724000344284,7.5197754,146.26,146.21,22.23082497]
[1724000344584,7.5197754,146.25,146.21,22.23082497]
[1724000344786,11.76326232,146.29,146.23,6.3484]
[1724000344988,7.5189269,146.28,146.23,6.3484]
[1724000345281,11.76326232,146.29,146.23,6.3484]
[1724000345462,7.51853321,146.28,146.23,6.3484]
[1724000345663,11.76326232,146.3,146.23,6.3484]
[1724000345868,7.51852726,146.29,146.23,6.3484]
[1724000346074,7.51852488,146.28,146.23,6.3484]
[1724000346272,11.76130233,146.3,146.23,6.3484]
[1724000346467,7.51857115,146.29,146.23,6.3484]
[1724000346669,11.76130233,146.33,146.26,8.76]
[1724000346869,15.5102,146.35,146.26,8.76]
[1724000346870,7.51728736,146.32,146.27,1.36710952]
[1724000347089,7.51728736,146.31,146.27,1.36710952]
[1724000347389,11.76130233,146.34,146.27,1.36710952]
[1724000347586,7.51730473,146.33,146.27,1.36710952]
[1724000347789,7.51730473,146.32,146.27,1.36710952]
[1724000347980,7.51730473,146.31,146.27,1.36710952]
[1724000348180,11.76130233,146.34,146.27,1.36710952]
[1724000348382,7.5172871,146.33,146.27,1.36710952]
[1724000348585,7.5172871,146.32,146.27,1.36710952]
[1724000348776,36.03150233,146.35,146.27,1.36710952]
[1724000348977,36.03150233,146.35,146.26,8.76]
[1724000348978,7.51730299,146.34,146.26,8.76]
[1724000349172,8.76,146.31,146.24,20.0]
[1724000349393,7.51821391,146.3,146.24,20.0]
[1724000349695,8.76,146.31,146.24,20.0]
[1724000349900,7.51821358,146.3,146.24,20.0]
[1724000350198,8.76,146.31,146.24,20.0]
[1724000350375,7.51845915,146.3,146.24,20.0]
[1724000350700,8.76,146.31,146.24,20.0]
[1724000350891,7.51845915,146.3,146.24,20.0]
[1724000351089,8.76,146.31,146.24,20.0]
[1724000351300,7.51845915,146.3,146.24,20.0]
[1724000351598,8.76,146.31,146.24,20.0]
[1724000351785,7.51849569,146.3,146.24,20.0]
[1724000351994,8.76,146.31,146.24,20.0]
[1724000352297,7.51850126,146.3,146.24,20.0]
[1724000352484,8.76,146.31,146.24,20.0]
[1724000352802,7.51849813,146.3,146.24,20.0]
[1724000352978,8.76,146.31,146.24,20.0]
[1724000353319,7.51849331,146.3,146.24,20.0]
[1724000353595,8.76,146.31,146.24,20.0]
[1724000353774,7.51853223,146.3,146.24,20.0]
[1724000353973,8.76,146.31,146.24,20.0]
[1724000354291,7.51853223,146.3,146.24,20.0]
[1724000354504,8.76,146.31,146.24,20.0]
[1724000354919,8.76,146.31,146.25,1.3672619]
[1724000355115,53.76,146.33,146.25,1.3672619]
[1724000355414,7.51818159,146.32,146.24,28.76]
[1724000355732,7.51818159,146.31,146.24,28.76]
[1724000355904,8.76,146.33,146.24,28.76]
[1724000356104,7.51813599,146.32,146.24,28.76]
[1724000356302,7.51813599,146.31,146.24,28.76]
[1724000356618,8.76,146.33,146.24,28.76]
[1724000356799,7.51814056,146.32,146.24,28.76]
[1724000357118,7.51814056,146.31,146.24,28.76]
[1724000357320,8.76,146.33,146.24,30.12719382]
[1724000357492,7.51813566,146.32,146.24,30.12719382]
[1724000357688,7.51813566,146.31,146.24,30.12719382]
[1724000357918,8.76,146.33,146.24,30.12719382]
[1724000358099,7.51814041,146.32,146.24,30.12719382]
[1724000358301,7.51814041,146.31,146.24,30.12719382]
[1724000358512,8.76,146.33,146.24,28.76]
[1724000358815,7.51814041,146.32,146.24,30.1272046]
[1724000359018,7.51814041,146.31,146.24,30.1272046]
[1724000359315,8.76,146.33,146.24,28.76]
[1724000359496,7.51808736,146.32,146.24,28.76]
[1724000359703,7.51808736,146.31,146.24,28.76]
[1724000360005,8.76,146.33,146.24,28.76]
[1724000360201,7.51809178,146.32,146.24,28.76]
[1724000360405,15.5102,146.35,146.26,8.76]
[1724000360723,7.51742902,146.34,146.26,8.76]
[1724000360924,7.51742902,146.33,146.26,8.76]
[1724000361124,7.51742902,146.32,146.26,8.76]
[1724000361319,24.2702,146.35,146.26,8.76]
[1724000361513,7.51766403,146.34,146.27,1.36707292]
[1724000361718,7.51766403,146.33,146.27,1.36705694]
[1724000361914,7.51766403,146.32,146.26,8.76]
[1724000362223,24.2702,146.35,146.26,8.76]
[1724000362416,7.51767572,146.34,146.26,8.76]
[1724000362713,24.2702,146.35,146.26,8.76]
[1724000362714,7.51767572,146.33,146.26,8.76]
[1724000362920,7.51767572,146.32,146.27,23.30485846]
[1724000363107,8.76,146.37,146.28,55.12683372]
[1724000363297,7.5171899,146.36,146.29,20.0]
[1724000363498,16.2771899,146.35,146.29,20.0]
[1724000363703,7.5171899,146.34,146.29,20.0]
[1724000363905,8.76,146.35,146.28,20.0]
[1724000364124,7.51705634,146.34,146.28,20.0]
[1724000364330,7.51705634,146.33,146.28,20.0]
[1724000364503,8.76,146.35,146.28,20.0]
[1724000364817,7.51753938,146.34,146.28,20.0]
[1724000365125,7.51753938,146.33,146.28,20.0]
[1724000365322,8.76,146.35,146.28,20.0]
[1724000365629,7.51758702,146.34,146.28,20.0]
[1724000365799,7.51758702,146.33,146.28,20.0]
[1724000366128,8.76,146.35,146.28,20.0]
[1724000366308,7.51758227,146.34,146.28,21.3670529]
[1724000366507,8.76,146.35,146.28,20.0]
[1724000366508,7.51758227,146.33,146.28,20.0]